[Event "Asian Amateur-ch Open 2022"]
[Site "Muscat"]
[Date "2022.10.02"]
[Round "3.28"]
[White "Darshan Rajmohan"]
[Black "Hisoriev, Shorahmat"]
[Result "0-1"]
[ECO "B24"]
[WhiteElo "1383"]
[BlackElo "1681"]
[Annotator "NA RC COMBH"]
[PlyCount "132"]
[EventDate "2022.09.29"]
[EventType "swiss"]
[SourceTitle "playchess.com"]
[Source "ChessBase"]
[SourceQuality "1"]
[TimeControl "5400+30"]

1. e4 {[%emt 0:00:03]} c5 {[%emt 0:00:46]} 2. Nc3 {[%emt 0:00:18]} Nc6 {[%emt 0:00:50]} 3. g3 {[%emt 0:00:52]} d6 {[%emt 0:01:01]} 4. Bg2 {[%emt 0:00:26]} Nf6 {[%emt 0:00:53]} 5. Nge2 {[%emt 0:00:18]} e5 {[%emt 0:00:33]} 6. O-O {[%emt 0:00:46]} Be7 {[%emt 0:00:25]} 7. d3 {[%emt 0:00:46]} O-O {[%emt 0:00:17]} 8. f4 {[%emt 0:01:29]} Be6 {[%emt 0:02:07]} 9. Be3 {[%emt 0:02:01]} Nd4 {[%emt 0:00:55]} 10. Bxd4 {[%emt 0:01:55]} cxd4 {[%emt 0:00:19]} 11. Nb1 {[%emt 0:00:48]} Ng4 {[%emt 0:00:31]} 12. Qc1 {[%emt 0:04:31]} Ne3 {[%emt 0:00:22]} 13. Rf2 {[%emt 0:00:22]} Nxg2 {[%emt 0:00:41]} 14. Kxg2 {[%emt 0:01:36]} f5 {[%emt 1:27:50]} 15. Nd2 {[%emt 0:00:50]} Qd7 {[%emt 0:00:00]} 16. Nf3 {[%emt 0:08:34]} fxe4 {[%emt 0:00:00]} 17. dxe4 {[%emt 0:00:18]} Bh3+ {[%emt 0:00:00]} 18. Kg1 {[%emt 0:00:48]} Bg4 {[%emt 0:00:00]} 19. Qd2 {[%emt 0:10:57]} Qb5 {[%emt 0:00:00]} 20. b3 {[%emt 1:02:52]} Rac8 {[%emt 0:00:00]} 21. a4 {[%emt 0:00:00]} Qc5 {[%emt 0:00:00]} 22. Ra2 {[%emt 0:00:00]} Bxf3 {[%emt 0:00:00]} 23. Rxf3 {[%emt 0:00:00]} d3+ {[%emt 0:00:00]} 24. Kg2 {[%emt 0:00:00]} dxe2 {[%emt 0:00:00]} 25. Qxe2 {[%emt 0:00:00]} exf4 {[%emt 0:00:00]} 26. gxf4 {[%emt 0:00:00]} Qh5 {[%emt 0:00:00]} 27. Qf2 {[%emt 0:00:00]} Bh4 {[%emt 0:00:00]} 28. Qf1 {[%emt 0:00:00]} Qg6+ {[%emt 0:00:00]} 29. Kh1 {[%emt 0:00:00]} Qxe4 {[%emt 0:00:00]} 30. Qg2 {[%emt 0:00:00]} Rxf4 {[%emt 0:00:00]} 31. Rxf4 {[%emt 0:00:00]} Qxf4 {[%emt 0:08:30]} 32. Qe2 {[%emt 0:06:00]} Rf8 {[%emt 0:00:00]} 33. Ra1 {[%emt 0:00:00]} Qf3+ {[%emt 0:00:00]} 34. Qxf3 {[%emt 0:00:00]} Rxf3 {[%emt 0:00:00]} 35. Rd1 {[%emt 0:00:00]} Be7 {[%emt 0:00:00]} 36. Kg2 {[%emt 0:00:00]} Rf5 {[%emt 0:02:30]} 37. Rd3 {[%emt 0:02:30]} Kf7 {[%emt 0:00:00]} 38. Rc3 {[%emt 0:00:00]} Bd8 {[%emt 0:00:00]} 39. Rh3 {[%emt 0:00:00]} Bb6 {[%emt 0:00:00]} 40. Rf3 {[%emt 0:00:00]} Rxf3 {[%emt 0:00:00]} 41. Kxf3 {[%emt 0:00:00]} d5 {[%emt 0:00:00]} 42. Kg4 {[%emt 0:00:00]} g6 {[%emt 0:03:00]} 43. h4 {[%emt 0:03:00]} h5+ {[%emt 0:00:00]} 44. Kg3 {[%emt 0:00:00]} Kf6 {[%emt 0:00:00]} 45. Kf4 {[%emt 0:00:00]} Bd4 {[%emt 0:00:00]} 46. c4 {[%emt 0:00:00]} dxc4 {[%emt 0:00:00]} 47. bxc4 {[%emt 0:00:00]} Bf2 {[%emt 0:00:00]} 48. Kf3 {[%emt 0:00:00]} Bxh4 {[%emt 0:00:00]} 49. Kg2 {[%emt 0:00:00]} Be1 {[%emt 0:03:30]} 50. Kh3 {[%emt 0:03:30]} g5 {[%emt 0:00:00]} 51. c5 {[%emt 0:00:00]} Bf2 {[%emt 0:00:00]} 52. Kg2 {[%emt 0:00:00]} Bxc5 {[%emt 0:01:30]} 53. Kf3 {[%emt 0:01:30]} Kf5 {[%emt 0:00:00]} 54. Kg3 {[%emt 0:00:00]} a6 {[%emt 0:00:00]} 55. a5 {[%emt 0:00:00]} Bb4 {[%emt 0:00:00]} 56. Kf3 {[%emt 0:00:00]} Bxa5 {[%emt 0:00:00]} 57. Kg3 {[%emt 0:00:00]} Ke4 {[%emt 0:00:00]} 58. Kh3 {[%emt 0:00:00]} Kf3 {[%emt 0:03:00]} 59. Kh2 {[%emt 0:03:00]} Bb6 {[%emt 0:00:00]} 60. Kh3 {[%emt 0:00:30]} a5 {[%emt 0:01:00]} 61. Kh2 {[%emt 0:00:00]} a4 {[%emt 0:00:00]} 62. Kh3 {[%emt 0:00:00]} a3 {[%emt 0:00:00]} 63. Kh2 {[%emt 0:00:00]} a2 {[%emt 0:00:00]} 64. Kh3 {[%emt 0:00:00]} a1=Q {[%emt 0:00:00]} 65. Kh2 {[%emt 0:00:00]} Qg1+ {[%emt 0:00:00]} 66. Kh3 {[%emt 0:00:00]} Qg2# {[%emt 0:00:00]} 0-1

[Event "Asian Amateur-ch Open 2022"]
[Site "Muscat"]
[Date "2022.10.02"]
[Round "3.29"]
[White "Shamas Salim Ahmed"]
[Black "Alhassan, Meshari"]
[Result "0-1"]
[ECO "D04"]
[WhiteElo "1663"]
[BlackElo "1372"]
[Annotator "NA RC COMBH"]
[PlyCount "86"]
[EventDate "2022.09.29"]
[EventType "swiss"]
[SourceTitle "playchess.com"]
[Source "ChessBase"]
[SourceQuality "1"]
[TimeControl "5400+30"]

1. d4 {[%emt 0:00:07]} d5 {[%emt 0:05:45]} 2. Nf3 {[%emt 0:00:58]} Nf6 {[%emt 0:02:51]} 3. e3 {[%emt 0:00:46]} Bg4 {[%emt 0:00:39]} 4. Be2 {[%emt 0:00:30]} e6 {[%emt 0:00:43]} 5. O-O {[%emt 0:01:46]} Bd6 {[%emt 0:01:55]} 6. b3 {[%emt 0:03:25]} c6 {[%emt 0:02:05]} 7. Bb2 {[%emt 0:00:20]} Qc7 {[%emt 0:00:35]} 8. Nbd2 {[%emt 0:02:56]} Ne4 {[%emt 0:04:22]} 9. h3 {[%emt 0:00:37]} h5 {[%emt 0:01:51]} 10. c4 {[%emt 0:00:48]} Nd7 {[%emt 0:00:30]} 11. cxd5 {[%emt 0:00:30]} exd5 {[%emt 0:03:18]} 12. Qc2 {[%emt 0:06:09]} Ndf6 {[%emt 0:00:30]} 13. hxg4 {[%emt 0:00:30]} hxg4 {[%emt 0:00:30]} 14. Ne5 {[%emt 0:00:30]} Nxd2 {[%emt 0:08:08]} 15. Qxd2 {[%emt 0:05:40]} Ne4 {[%emt 0:01:03]} 16. Qc2 {[%emt 0:02:24]} f6 {[%emt 0:02:18]} 17. Bxg4 {[%emt 0:01:47]} fxe5 {[%emt 0:00:30]} 18. dxe5 {[%emt 0:00:30]} Bxe5 {[%emt 0:01:15]} 19. f4 {[%emt 0:18:53]} Bxb2 {[%emt 0:00:30]} 20. Qxb2 {[%emt 0:00:30]} Qe7 {[%emt 0:08:59]} 21. Rf3 {[%emt 0:00:49]} Rd8 {[%emt 0:17:41]} 22. Qe5 {[%emt 0:01:44]} Qxe5 {[%emt 0:00:53]} 23. fxe5 {[%emt 0:00:02]} Rh4 {[%emt 0:03:47]} 24. Bf5 {[%emt 0:01:13]} Ke7 {[%emt 0:09:34]} 25. g3 {[%emt 0:00:24]} Rh5 {[%emt 0:03:34]} 26. Bg6 {[%emt 0:03:18]} Rxe5 {[%emt 0:00:22]} 27. Rf7+ {[%emt 0:00:52]} Kd6 {[%emt 0:00:45]} 28. Bxe4 {[%emt 0:00:25]} Rxe4 {[%emt 0:01:06]} 29. Rxg7 {[%emt 0:00:16]} Rxe3 {[%emt 0:00:43]} 30. Kg2 {[%emt 0:00:19]} Rd7 {[%emt 0:00:44]} 31. Rg6+ {[%emt 0:00:11]} Kc5 {[%emt 0:00:54]} 32. g4 {[%emt 0:00:12]} d4 {[%emt 0:01:14]} 33. Kf2 {[%emt 0:00:38]} Rf7+ {[%emt 0:00:20]} 34. Kg2 {[%emt 0:00:17]} d3 {[%emt 0:00:52]} 35. Rc1+ {[%emt 0:00:40]} Kb4 {[%emt 0:00:34]} 36. Rd6 {[%emt 0:00:15]} Rf4 {[%emt 0:04:02]} 37. g5 {[%emt 0:00:58]} Rg4+ {[%emt 0:01:08]} 38. Kf2 {[%emt 0:00:12]} Rgg3 {[%emt 0:01:52]} 39. g6 {[%emt 0:00:21]} Ref3+ {[%emt 0:00:24]} 40. Ke1 {[%emt 0:00:12]} Rg2 {[%emt 0:02:38]} 41. Rc4+ {[%emt 0:00:51]} Ka3 {[%emt 0:00:32]} 42. Rcd4 {[%emt 0:00:30]} Re2+ {[%emt 0:00:53]} 43. Kd1 {[%emt 0:00:11]} Rf1# {[%emt 0:09:11]} 0-1

[Event "Asian Amateur-ch Open 2022"]
[Site "Muscat"]
[Date "2022.10.02"]
[Round "3.30"]
[White "Al Balushi, Salim"]
[Black "Zholdoshmamatov, Adilet"]
[Result "1-0"]
[ECO "A00"]
[WhiteElo "1374"]
[BlackElo "1654"]
[Annotator "NA RC COMBH"]
[PlyCount "69"]
[EventDate "2022.09.29"]
[EventType "swiss"]
[SourceTitle "playchess.com"]
[Source "ChessBase"]
[SourceQuality "1"]
[TimeControl "5400+30"]

1. d3 {[%emt 0:00:12]} Nf6 {[%emt 0:00:41]} 2. c3 {[%emt 0:00:19]} g6 {[%emt 0:00:42]} 3. Qc2 {[%emt 0:00:10]} Bg7 {[%emt 0:00:18]} 4. e4 {[%emt 0:00:09]} d6 {[%emt 0:00:11]} 5. a4 {[%emt 0:00:46]} O-O {[%emt 0:01:20]} 6. Nf3 {[%emt 0:00:08]} e5 {[%emt 0:00:26]} 7. Bg5 {[%emt 0:00:18]} Nbd7 {[%emt 0:00:26]} 8. Be2 {[%emt 0:01:32]} c6 {[%emt 0:00:22]} 9. h3 {[%emt 0:03:15]} d5 {[%emt 0:00:25]} 10. O-O {[%emt 0:01:10]} Qc7 {[%emt 0:00:22]} 11. Re1 {[%emt 0:02:26]} Nc5 {[%emt 0:02:34]} 12. Nbd2 {[%emt 0:00:30]} Ne6 {[%emt 0:01:17]} 13. Bh4 {[%emt 0:02:59]} Nf4 {[%emt 0:00:50]} 14. Bf1 {[%emt 0:04:18]} N6h5 {[%emt 0:01:23]} 15. a5 {[%emt 0:04:27]} f5 {[%emt 0:01:27]} 16. exf5 {[%emt 0:02:08]} gxf5 {[%emt 0:00:13]} 17. c4 {[%emt 0:13:55]} Ng6 {[%emt 0:01:19]} 18. cxd5 {[%emt 0:05:19]} Nxh4 {[%emt 0:02:12]} 19. Nxh4 {[%emt 0:00:13]} Qe7 {[%emt 0:01:23]} 20. Nhf3 {[%emt 0:08:33]} cxd5 {[%emt 0:01:34]} 21. Qb3 {[%emt 0:03:24]} Qd6 {[%emt 0:02:32]} 22. Rac1 {[%emt 0:01:27]} Kh8 {[%emt 0:00:57]} 23. Nb1 {[%emt 0:06:40]} e4 {[%emt 0:00:32]} 24. dxe4 {[%emt 0:03:01]} fxe4 {[%emt 0:01:36]} 25. Nh2 {[%emt 0:08:32]} Bd4 {[%emt 0:03:37]} 26. Re3 {[%emt 0:04:14]} Qg3 {[%emt 0:06:22]} 27. fxg3 {[%emt 0:04:34]} Nxg3 {[%emt 0:00:57]} 28. Rd1 {[%emt 0:03:55]} Bxe3+ {[%emt 0:09:39]} 29. Qxe3 {[%emt 0:00:32]} Nf5 {[%emt 0:01:05]} 30. Qc5 {[%emt 0:02:15]} Be6 {[%emt 0:01:38]} 31. Ng4 {[%emt 0:01:51]} Rac8 {[%emt 0:00:39]} 32. Qxa7 {[%emt 0:00:34]} d4 {[%emt 0:01:06]} 33. Qxb7 {[%emt 0:00:34]} e3 {[%emt 0:03:44]} 34. Bd3 {[%emt 0:00:45]} Ng3 {[%emt 0:00:31]} 35. Qxh7# {[%emt 0:00:54]} 1-0

[Event "Asian Amateur-ch Open 2022"]
[Site "Muscat"]
[Date "2022.10.02"]
[Round "3.31"]
[White "Al Amari, Mohammed"]
[Black "Al Shereiqi, Nasir"]
[Result "1-0"]
[ECO "B18"]
[WhiteElo "1646"]
[BlackElo "1305"]
[Annotator "NA RC COMBH"]
[PlyCount "153"]
[EventDate "2022.09.29"]
[EventType "swiss"]
[SourceTitle "playchess.com"]
[Source "ChessBase"]
[SourceQuality "1"]
[TimeControl "5400+30"]

1. e4 {[%emt 0:00:15]} c6 {[%emt 0:00:18]} 2. d4 {[%emt 0:00:13]} d5 {[%emt 0:00:28]} 3. Nc3 {[%emt 0:00:11]} dxe4 {[%emt 0:00:51]} 4. Nxe4 {[%emt 0:00:11]} Bf5 {[%emt 0:00:49]} 5. Ng3 {[%emt 0:00:15]} Bg6 {[%emt 0:00:10]} 6. Nf3 {[%emt 0:00:11]} e6 {[%emt 0:00:32]} 7. Ne5 {[%emt 0:00:38]} Ne7 {[%emt 0:02:07]} 8. h4 {[%emt 0:02:31]} h6 {[%emt 0:01:30]} 9. Nxg6 {[%emt 0:00:39]} Nxg6 {[%emt 0:00:09]} 10. h5 {[%emt 0:00:13]} Ne7 {[%emt 0:00:26]} 11. Be2 {[%emt 0:00:28]} Nd5 {[%emt 0:00:29]} 12. O-O {[%emt 0:03:26]} Bd6 {[%emt 0:00:45]} 13. Ne4 {[%emt 0:02:48]} Be7 {[%emt 0:01:49]} 14. c4 {[%emt 0:07:39]} Nf6 {[%emt 0:03:09]} 15. Ng3 {[%emt 0:01:21]} O-O {[%emt 0:02:06]} 16. Be3 {[%emt 0:02:06]} Qc7 {[%emt 0:02:46]} 17. Qc2 {[%emt 0:02:29]} Nbd7 {[%emt 0:00:42]} 18. Rad1 {[%emt 0:02:28]} Rad8 {[%emt 0:00:38]} 19. a3 {[%emt 0:02:09]} Bd6 {[%emt 0:05:54]} 20. Ne4 {[%emt 0:08:13]} Bf4 {[%emt 0:05:44]} 21. Nc3 {[%emt 0:02:59]} Bxe3 {[%emt 0:05:13]} 22. fxe3 {[%emt 0:00:43]} Qg3 {[%emt 0:00:34]} 23. Rf3 {[%emt 0:06:26]} Qh4 {[%emt 0:05:29]} 24. Rdf1 {[%emt 0:03:18]} Qg5 {[%emt 0:04:02]} 25. Rh3 {[%emt 0:01:35]} Qa5 {[%emt 0:05:09]} 26. e4 {[%emt 0:04:24]} Nh7 {[%emt 0:02:05]} 27. e5 {[%emt 0:06:26]} Rfe8 {[%emt 0:07:33]} 28. Ne4 {[%emt 0:00:39]} Ndf8 {[%emt 0:00:39]} 29. Nd6 {[%emt 0:01:40]} Re7 {[%emt 0:00:33]} 30. b4 {[%emt 0:02:44]} Qc7 {[%emt 0:01:27]} 31. c5 {[%emt 0:00:32]} b6 {[%emt 0:02:44]} 32. Rg3 {[%emt 0:02:40]} Ng5 {[%emt 0:04:37]} 33. Rf4 {[%emt 0:00:45]} Nfh7 {[%emt 0:01:32]} 34. Bd3 {[%emt 0:00:26]} Rf8 {[%emt 0:04:24]} 35. Rfg4 {[%emt 0:01:17]} f5 {[%emt 0:03:06]} 36. Rf4 {[%emt 0:03:26]} b5 {[%emt 0:02:33]} 37. Qa2 {[%emt 0:01:55]} Kh8 {[%emt 0:01:38]} 38. Be2 {[%emt 0:02:46]} a6 {[%emt 0:03:06]} 39. a4 {[%emt 0:00:33]} Qd7 {[%emt 0:00:42]} 40. axb5 {[%emt 0:00:43]} axb5 {[%emt 0:02:01]} 41. Ra3 {[%emt 0:00:14]} Rb8 {[%emt 0:02:55]} 42. Ra8 {[%emt 0:00:33]} Qd8 {[%emt 0:01:58]} 43. Ra6 {[%emt 0:03:09]} Qc7 {[%emt 0:04:06]} 44. Bf3 {[%emt 0:01:28]} Nxf3+ {[%emt 0:02:21]} 45. Rxf3 {[%emt 0:00:15]} Qd8 {[%emt 0:02:45]} 46. Rxc6 {[%emt 0:00:55]} Rd7 {[%emt 0:00:35]} 47. Qa6 {[%emt 0:05:28]} Qh4 {[%emt 0:02:08]} 48. Rc8+ {[%emt 0:01:45]} Nf8 {[%emt 0:02:58]} 49. Rxb8 {[%emt 0:00:53]} Qxd4+ {[%emt 0:00:10]} 50. Kf1 {[%emt 0:01:13]} Qd1+ {[%emt 0:00:03]} 51. Kf2 {[%emt 0:00:40]} Qd4+ {[%emt 0:00:57]} 52. Re3 {[%emt 0:02:11]} Qf4+ {[%emt 0:00:28]} 53. Ke2 {[%emt 0:00:31]} Qg4+ {[%emt 0:00:07]} 54. Kd2 {[%emt 0:03:52]} Qxb4+ {[%emt 0:00:20]} 55. Kc2 {[%emt 0:00:29]} Qxc5+ {[%emt 0:00:13]} 56. Rc3 {[%emt 0:00:27]} Qf2+ {[%emt 0:02:21]} 57. Kb3 {[%emt 0:00:20]} Kg8 {[%emt 0:00:07]} 58. Rxf8+ {[%emt 0:00:59]} Kh7 {[%emt 0:00:42]} 59. Rh8+ {[%emt 0:01:38]} Kxh8 {[%emt 0:00:09]} 60. Qc8+ {[%emt 0:00:19]} Kh7 {[%emt 0:00:01]} 61. Qxd7 {[%emt 0:00:25]} Qf1 {[%emt 0:00:40]} 62. Qxb5 {[%emt 0:00:37]} Qb1+ {[%emt 0:00:03]} 63. Kc4 {[%emt 0:00:18]} Qf1+ {[%emt 0:00:13]} 64. Kc5 {[%emt 0:00:28]} Qf2+ {[%emt 0:00:18]} 65. Kb4 {[%emt 0:00:16]} Qb2+ {[%emt 0:00:08]} 66. Rb3 {[%emt 0:00:41]} Qd2+ {[%emt 0:00:02]} 67. Kc5 {[%emt 0:00:21]} Qd5+ {[%emt 0:00:23]} 68. Kb6 {[%emt 0:00:21]} Qd4+ {[%emt 0:00:01]} 69. Qc5 {[%emt 0:00:56]} Qd1 {[%emt 0:00:40]} 70. Rb5 {[%emt 0:00:25]} Qxh5 {[%emt 0:00:27]} 71. Qc8 {[%emt 0:01:02]} Qg6 {[%emt 0:01:16]} 72. Qe8 {[%emt 0:00:27]} Qxg2 {[%emt 0:00:58]} 73. Qxe6 {[%emt 0:00:16]} Qf2+ {[%emt 0:00:08]} 74. Kc7 {[%emt 0:00:12]} Qa7+ {[%emt 0:00:30]} 75. Rb7 {[%emt 0:00:16]} Qa5+ {[%emt 0:00:01]} 76. Kd7 {[%emt 0:00:18]} Qa4+ {[%emt 0:00:03]} 77. Ke7 {[%emt 0:00:14]} 1-0

[Event "Asian Amateur-ch Open 2022"]
[Site "Muscat"]
[Date "2022.10.02"]
[Round "3.32"]
[White "Al Nofli, Mohammed Saif"]
[Black "Al Kathiri, Mana"]
[Result "1-0"]
[ECO "B11"]
[WhiteElo "1370"]
[BlackElo "1646"]
[Annotator "NA RC COMBH"]
[PlyCount "79"]
[EventDate "2022.09.29"]
[EventType "swiss"]
[SourceTitle "playchess.com"]
[Source "ChessBase"]
[SourceQuality "1"]
[TimeControl "5400+30"]

1. e4 {[%emt 0:00:07]} c6 {[%emt 0:00:29]} 2. Nf3 {[%emt 0:00:18]} d5 {[%emt 0:00:02]} 3. Nc3 {[%emt 0:00:42]} Bg4 {[%emt 0:00:15]} 4. h3 {[%emt 0:00:52]} Bxf3 {[%emt 0:00:12]} 5. Qxf3 {[%emt 0:00:18]} d4 {[%emt 0:04:53]} 6. Ne2 {[%emt 0:01:13]} g6 {[%emt 0:03:17]} 7. Ng3 {[%emt 0:02:27]} Bg7 {[%emt 0:00:45]} 8. Bc4 {[%emt 0:00:45]} e6 {[%emt 0:02:44]} 9. d3 {[%emt 0:04:00]} Nd7 {[%emt 0:01:36]} 10. Qe2 {[%emt 0:01:55]} Qc7 {[%emt 0:03:11]} 11. a4 {[%emt 0:04:08]} Ne7 {[%emt 0:01:11]} 12. b4 {[%emt 0:04:04]} a6 {[%emt 0:03:37]} 13. Bb3 {[%emt 0:02:30]} Rc8 {[%emt 0:07:45]} 14. Bd2 {[%emt 0:04:17]} h5 {[%emt 0:01:51]} 15. Nf1 {[%emt 0:08:23]} b6 {[%emt 0:00:41]} 16. Nh2 {[%emt 0:07:44]} c5 {[%emt 0:01:59]} 17. b5 {[%emt 0:01:37]} a5 {[%emt 0:02:55]} 18. O-O {[%emt 0:02:48]} Ne5 {[%emt 0:08:17]} 19. f4 {[%emt 0:02:26]} c4 {[%emt 0:02:29]} 20. Ba2 {[%emt 0:04:12]} cxd3 {[%emt 0:00:27]} 21. cxd3 {[%emt 0:01:12]} Nd7 {[%emt 0:00:17]} 22. Nf3 {[%emt 0:02:50]} O-O {[%emt 0:01:06]} 23. Ng5 {[%emt 0:03:12]} Nc5 {[%emt 0:01:31]} 24. f5 {[%emt 0:04:49]} exf5 {[%emt 0:12:33]} 25. exf5 {[%emt 0:02:44]} Qe5 {[%emt 0:00:59]} 26. Qxe5 {[%emt 0:04:35]} Bxe5 {[%emt 0:00:37]} 27. fxg6 {[%emt 0:00:47]} Nxg6 {[%emt 0:04:34]} 28. Nxf7 {[%emt 0:00:49]} Kh7 {[%emt 0:00:34]} 29. Bc4 {[%emt 0:03:52]} Bg3 {[%emt 0:01:25]} 30. Rf3 {[%emt 0:03:25]} h4 {[%emt 0:00:49]} 31. Rf5 {[%emt 0:01:20]} Rce8 {[%emt 0:06:07]} 32. Rh5+ {[%emt 0:01:36]} Kg7 {[%emt 0:02:02]} 33. Bh6+ {[%emt 0:01:44]} Kf6 {[%emt 0:01:39]} 34. Rf1+ {[%emt 0:02:13]} Ke7 {[%emt 0:00:51]} 35. Bxf8+ {[%emt 0:03:01]} Rxf8 {[%emt 0:01:14]} 36. Rh7 {[%emt 0:01:10]} Ke8 {[%emt 0:02:19]} 37. Rf6 {[%emt 0:02:30]} Ne7 {[%emt 0:03:52]} 38. Rxb6 {[%emt 0:01:40]} Nxa4 {[%emt 0:01:46]} 39. Ra6 {[%emt 0:01:23]} Kd7 {[%emt 0:01:06]} 40. Be6+ {[%emt 0:10:52]} 1-0

[Event "Asian Amateur-ch Open 2022"]
[Site "Muscat"]
[Date "2022.10.02"]
[Round "3.33"]
[White "Salem Muhsan Shuaib"]
[Black "Takenouchi, Atsushi"]
[Result "1-0"]
[ECO "D37"]
[WhiteElo "1227"]
[BlackElo "1629"]
[Annotator "NA RC COMBH"]
[PlyCount "81"]
[EventDate "2022.09.29"]
[EventType "swiss"]
[SourceTitle "playchess.com"]
[Source "ChessBase"]
[SourceQuality "1"]
[TimeControl "5400+30"]

1. d4 {[%emt 0:00:03]} Nf6 {[%emt 0:00:06]} 2. c4 {[%emt 0:00:08]} e6 {[%emt 0:00:04]} 3. Nf3 {[%emt 0:00:16]} a6 {[%emt 0:00:10]} 4. Nc3 {[%emt 0:01:11]} d5 {[%emt 0:00:10]} 5. Bf4 {[%emt 0:02:39]} Be7 {[%emt 0:02:43]} 6. e3 {[%emt 0:01:11]} O-O {[%emt 0:02:32]} 7. Rc1 {[%emt 0:01:05]} dxc4 {[%emt 0:04:06]} 8. Bxc4 {[%emt 0:00:20]} b5 {[%emt 0:00:16]} 9. Bd3 {[%emt 0:06:05]} Nbd7 {[%emt 0:03:24]} 10. O-O {[%emt 0:03:19]} c5 {[%emt 0:01:28]} 11. e4 {[%emt 0:07:07]} cxd4 {[%emt 0:22:13]} 12. Nxd4 {[%emt 0:00:18]} Bb7 {[%emt 0:03:41]} 13. e5 {[%emt 0:01:05]} Nd5 {[%emt 0:00:48]} 14. Nxd5 {[%emt 0:07:19]} Bxd5 {[%emt 0:00:15]} 15. Re1 {[%emt 0:06:49]} Rc8 {[%emt 0:01:51]} 16. Qg4 {[%emt 0:04:26]} Re8 {[%emt 0:02:23]} 17. Rcd1 {[%emt 0:10:45]} Nc5 {[%emt 0:01:00]} 18. Bb1 {[%emt 0:02:34]} Na4 {[%emt 0:00:58]} 19. Re3 {[%emt 0:20:42]} Nxb2 {[%emt 0:07:56]} 20. Bxh7+ {[%emt 0:09:40]} Kxh7 {[%emt 0:12:43]} 21. Rh3+ {[%emt 0:03:16]} Kg8 {[%emt 0:02:08]} 22. Qh5 {[%emt 0:07:10]} Bh4 {[%emt 0:13:44]} 23. Rxh4 {[%emt 0:01:17]} Qxh4 {[%emt 0:01:31]} 24. Qxh4 {[%emt 0:00:28]} Nxd1 {[%emt 0:00:03]} 25. Qg4 {[%emt 0:00:53]} Nc3 {[%emt 0:01:00]} 26. Bh6 {[%emt 0:00:37]} g6 {[%emt 0:00:17]} 27. Qh4 {[%emt 0:00:44]} Ne4 {[%emt 0:05:48]} 28. f3 {[%emt 0:00:52]} g5 {[%emt 0:00:29]} 29. Bxg5 {[%emt 0:00:28]} Nxg5 {[%emt 0:00:30]} 30. Qxg5+ {[%emt 0:00:01]} Kf8 {[%emt 0:00:27]} 31. h4 {[%emt 0:00:45]} Rc4 {[%emt 0:01:10]} 32. Ne2 {[%emt 0:00:41]} Rec8 {[%emt 0:01:20]} 33. h5 {[%emt 0:00:33]} Rc2 {[%emt 0:00:31]} 34. Ng3 {[%emt 0:00:59]} Rxa2 {[%emt 0:04:32]} 35. Ne4 {[%emt 0:00:39]} Ra1+ {[%emt 0:02:00]} 36. Kh2 {[%emt 0:00:12]} Bxe4 {[%emt 0:00:22]} 37. fxe4 {[%emt 0:00:01]} Rcc1 {[%emt 0:00:17]} 38. Qd8+ {[%emt 0:00:23]} Kg7 {[%emt 0:00:16]} 39. Qf6+ {[%emt 0:00:06]} Kg8 {[%emt 0:00:57]} 40. h6 {[%emt 0:00:33]} Kf8 {[%emt 0:00:48]} 41. Qd8# {[%emt 0:00:00]} 1-0